[Event "89_| Campeonato Brasileiro 2023"]
[Site "Recife"]
[Date "2023.12.17"]
[Round "6.3"]
[White "Filgueiras, Nathan Felipe"]
[Black "Diamant, Andre"]
[Result "1/2-1/2"]
[ECO "B33"]
[WhiteElo "2295"]
[BlackElo "2513"]
[PlyCount "58"]
[EventDate "2023.??.??"]
[EventCountry "BRA"]
[TimeControl "90+30"]
[WhiteClock "0:28:11"]
[BlackClock "1:10:14"]

{[%evp 33,58,38,34,-8,17,0,0,0,0,0,0,0,0,0,0,0,0,0,0,0,0,0,0,0,0,0,0]} 1. e4 {
[%emt 0:00:00]} c5 {[%emt 0:00:00]} 2. Nf3 {[%emt 0:00:00]} Nc6 {[%emt 0:00:00]
} 3. d4 {[%emt 0:00:00]} cxd4 {[%emt 0:00:00]} 4. Nxd4 {[%emt 0:00:00]} Nf6 {
[%emt 0:00:00]} 5. Nc3 {[%emt 0:00:00]} e5 {[%emt 0:00:00]} 6. Ndb5 {[%emt 0:
00:00]} d6 {[%emt 0:00:00]} 7. Bg5 {[%emt 0:00:00]} a6 {[%emt 0:00:00]} 8. Na3
{[%emt 0:00:00]} b5 {[%emt 0:00:00]} 9. Bxf6 {[%emt 0:00:00]} gxf6 {[%emt 0:00:
00]} 10. Nd5 {[%emt 0:00:00]} Bg7 {[%emt 0:00:00]} 11. Bd3 {[%emt 0:00:00]} Ne7
{[%emt 0:00:00]} 12. Nxe7 {[%emt 0:00:00]} Qxe7 {[%emt 0:00:00]} 13. O-O {
[%emt 0:00:00]} O-O {[%emt 0:00:00]} 14. c4 {[%emt 0:00:00]} f5 {[%emt 0:00:00]
} 15. Qh5 {[%emt 0:00:00]} Rb8 {[%emt 0:00:00]} 16. exf5 {[%emt 0:00:00]} e4 {
[%emt 0:00:00]} 17. Rae1 {[%emt 0:00:00]} Bb7 {[%emt 0:00:00]} 18. Kh1 {
[%emt 0:00:00] B33: Sicilian: Pelikan and Sveshnikov Variations.} Rfe8 {
[%emt 0:00:00] The position is equal.} 19. f3 {[%emt 0:00:00]} (19. cxb5 {
is interesting.} axb5 20. Bxb5 Rec8 21. Bd3 Qf6 22. Bxe4 Bxe4 23. Rxe4 d5 24.
Re2) (19. cxb5 {feels hotter.} axb5 20. Bxb5 Rec8 21. f3 exf3 22. gxf3 Qf6 23.
Bc4) 19... exf3 $146 {[%emt 0:00:00] The position is equal.The position is
equal.} ({Don't play} 19... Bxb2 20. fxe4 Kh8 $2 {[%eval 308,28]} (20... f6 $14
{[%eval 35,29]}) ({Black should try} 20... Qf6 $14 {[%eval 40,30]}) 21. Nc2 $16
{[%eval 51,30]} (21. f6 $18 {[%eval 230,24]} Qf8 22. Nc2 $2 {[%eval 14,26]} (
22. Re3 $18 {[%eval 302,29]} Re5 23. Qh4)) (21. f6 $18 {[%eval 308,28]} Qe5 22.
Rf5)) ({Predecessor:} 19... bxc4 20. Bxe4 {[%eval -130,24]} (20. Nxc4 $11 {
[%eval 11,41]} d5 21. f6 Qxf6 22. fxe4) (20. Nxc4 $11 {[%eval 17,32]} d5 21.
Nb6) 20... d5 21. f6 Qxf6 22. Bxd5 {[%eval -233,32] [#]} (22. Bxh7+ $17 {
[%eval -91,27] was called for.} Kf8 23. b3) (22. Bxh7+ $17 {[%eval -132,32]
was called for.} Kf8 23. b3) 22... Bxd5 $2 {[%eval -11,32]} (22... Rxe1 $1 $19
{[%eval -189,30]} 23. Rxe1 Bxd5 24. Qxd5 c3) (22... Rxe1 $1 $19 {[%eval -233,
32]} 23. Rxe1 Bxd5 24. Qxd5 c3) 23. Qxd5 $2 {[%eval -199,31]} (23. Rxe8+ $1 $11
{[%eval -21,29] and White is okay.} Rxe8 24. Qxd5) (23. Rxe8+ $1 $11 {[%eval
-11,32] and White is okay.} Rxe8 24. Qxd5) 23... Qxb2 $2 {[%eval -1,31]} (23...
Rxe1 $19 {[%eval -192,25]} 24. Rxe1 c3) (23... Rxe1 $19 {[%eval -199,31]} 24.
Rxe1 c3) 24. Nxc4 Qxa2 25. Re4 Rbd8 {1/2-1/2 (44) Halvax,G (2395)-Sebenik,M 
(2541) Zadar 2016}) ({Much weaker is} 19... Bxb2 20. fxe4 Kh8 $2 {[%eval 296,
26][%mdl 8192]} ({Better is} 20... f6 $14 {[%eval 37,28]} 21. Nc2 Kh8) 21. Nc2
$16 {[%eval 39,28]} ({White should play} 21. f6 $18 {[%eval 296,26]} Qf8 22.
Re3)) ({Predecessor:} 19... bxc4 20. Bxe4 {[%eval -132,27]} (20. Nxc4 $11 {
[%eval 9,40]} d5 21. Nb6) 20... d5 21. f6 Qxf6 22. Bxd5 {[%eval -202,30]} (22.
Bxh7+ $17 {[%eval -129,34]} Kf8 23. b3) 22... Bxd5 $2 {[%eval -16,33]} (22...
Rxe1 $1 $19 {[%eval -202,30]} 23. Rxe1 Bxd5 24. Qxd5 c3) 23. Qxd5 $2 {[%eval
-214,27]} (23. Rxe8+ $1 $11 {[%eval -16,33]} Rxe8 24. Qxd5) 23... Qxb2 $2 {
[%eval -7,32]} (23... Rxe1 $19 {[%eval -214,27]} 24. Rxe1 c3) 24. Nxc4 Qxa2 25.
Re4 Rbd8 {1/2-1/2 (44) Halvax,G (2395)-Sebenik,M (2541) Zadar 2016}) ({Reject} 
19... Bxb2 $6 20. fxe4 f6 21. Nc2 $16) ({Predecessor:} 19... bxc4 20. Bxe4 d5
21. f6 Qxf6 22. Bxd5 Bxd5 23. Qxd5 Qxb2 24. Nxc4 Qxa2 25. Re4 Rbd8 {1/2-1/2 
(44) Halvax,G (2395)-Sebenik,M (2541) Zadar 2016}) 20. Rxe7 {[%emt 0:00:00]}
fxg2+ {[%emt 0:00:00]} 21. Kg1 {[%emt 0:00:00]} gxf1=Q+ {[%emt 0:00:00]} 22.
Kxf1 {[%emt 0:00:00]} Rxe7 {[%emt 0:00:00]} 23. f6 {[%emt 0:00:00]} Bxf6 {
[%emt 0:00:00]} 24. Qxh7+ {[%emt 0:00:00]} Kf8 {[%emt 0:00:00] Strongly
threatening ...Re6. Hoping for ...Re6. aiming for ...Re6.} 25. Qh6+ {[%emt 0:
00:00]} Bg7 {[%emt 0:00:00]} 26. Qxd6 {[%emt 0:00:00]} Be5 {[%emt 0:00:00]} 27.
Qh6+ {[%emt 0:00:00]} Bg7 {[%emt 0:00:00]} 28. Qd6 {[%emt 0:00:00]} Be5 {
[%emt 0:00:00]} 29. Qh6+ {[%emt 0:00:00]} Bg7 {[%emt 0:00:00] Accuracy: White
= 76%, Black = 85%. . Accuracy: White = 75%, Black = 86%.} 1/2-1/2

[Event "89_| Campeonato Brasileiro 2023"]
[Site "Recife"]
[Date "2023.12.17"]
[Round "6.5"]
[White "Di Berardino, Diego Rafael"]
[Black "Gauche, Charles"]
[Result "1-0"]
[ECO "D13"]
[WhiteElo "2477"]
[BlackElo "2142"]
[PlyCount "101"]
[EventDate "2023.??.??"]
[EventCountry "BRA"]
[TimeControl "90+30"]
[WhiteClock "0:01:33"]
[BlackClock "0:01:23"]

{[%evp 19,101,47,48,48,60,28,30,0,9,-31,6,0,62,69,67,50,61,24,43,8,60,64,67,68,
69,20,13,0,0,-9,39,-49,0,-66,35,-12,-40,-53,-55,-53,-64,-108,8,-54,188,0,51,0,
0,-174,-175,-239,-60,-203,0,-222,-200,-403,107,67,69,5,18,0,0,-12,18,10,12,15,
10,13,4051,3390,3390,3386,3200,2421,29994,29995,29995,29991,29996,29997]} 1. d4
{[%emt 0:00:00]} d5 {[%emt 0:00:00]} 2. c4 {[%emt 0:00:00]} c6 {[%emt 0:00:00]}
3. Nf3 {[%emt 0:00:00]} Nf6 {[%emt 0:00:00]} 4. Nc3 {[%emt 0:00:00]} a6 {
[%emt 0:00:00]} 5. cxd5 {[%emt 0:00:00]} cxd5 {[%emt 0:00:00]} 6. Bf4 {[%emt 0:
00:00]} e6 {[%emt 0:00:00]} 7. e3 {[%emt 0:00:00]} Nc6 {[%emt 0:00:00]} 8. Bd3
{[%emt 0:00:00]} Be7 {[%emt 0:00:00]} 9. h3 {[%emt 0:00:00]} O-O {[%emt 0:00:
00]} 10. O-O {[%emt 0:00:00]} b5 {[%emt 0:00:00]} 11. Qe2 {[%emt 0:07:00] D13:
Slav Defence: Exchange variation without ...Bf5.} Bb7 {[%emt 0:07:00]} 12. Rad1
$146 {[%emt 0:00:30]} ({Predecessor:} 12. Rfc1 Rc8 13. a3 Na5 14. Qd1 Nc4 15.
Bxc4 dxc4 16. Ne5 Nd5 17. Nxd5 Qxd5 18. Qf3 f6 19. Qxd5 Bxd5 {0-1 (88) Akhayan,
R (2259)-Eden,J (2294) Chess.com INT 2021}) 12... Rc8 {[%emt 0:00:30]} 13. Bg3
{[%emt 0:00:30] White has an edge.} Na5 {[%emt 0:00:30]} 14. Ne5 {[%emt 0:00:
00]} Nc4 {[%emt 0:00:00]} 15. a4 {[%emt 0:00:00]} Qb6 {[%eval 62,29] [%emt 0:
00:00]} (15... b4 $11 {[%eval 0,33]} 16. Nb1 Qe8) 16. axb5 $14 {[%emt 0:00:00]}
axb5 {[%emt 0:00:00]} 17. Bh4 {[%emt 0:00:00] Bxf6 is the strong threat.} Rc7 {
[%emt 0:00:00]} 18. f4 {[%emt 0:00:00]} (18. Bxf6 Bxf6 19. f4 (19. Qh5 g6 $17)
19... g6 $11) 18... g6 {[%emt 0:00:00]} 19. g4 {[%emt 0:00:00]} Ne8 {[%eval 60,
24] [%emt 0:00:00]} (19... Bc6 $11 {[%eval 8,29]}) 20. Bxe7 {[%emt 0:00:00]}
Rxe7 {[%emt 0:00:00]} 21. g5 {[%emt 0:00:00]} (21. Bxc4 $6 dxc4 22. g5 Nd6 $11)
21... Ng7 {[%emt 0:00:00]} 22. Kh2 {[%eval 20,28] [%emt 0:00:00]} (22. Ng4 $14
{[%eval 69,30]}) 22... Nf5 $11 {[%emt 0:00:00]} 23. Ng4 {[%emt 0:00:00] aiming
for Bxf5.} Kg7 {[%emt 0:00:00]} 24. Qf2 {[%emt 0:00:00]} Bc6 {[%eval 39,28] 
[%emt 0:00:00]} (24... Rh8 $11 {[%eval -9,31] deserves consideration.}) 25. h4
{[%eval -49,25] [%emt 0:00:00]} (25. Nf6 $14 {[%eval 39,28]} Ncxe3 {[%mdl 64]
Double Attack} 26. Bxf5 Nxf5 27. Ne2) 25... Rh8 {[%eval 0,30] [%emt 0:00:00]} (
25... b4 $15 {[%eval -49,25] might be stronger.} 26. Nb1 Ra7) 26. Rde1 {
[%eval -66,28] [%emt 0:03:18]} ({Better is} 26. b3 $11 {[%eval 0,30]} Ncd6 27.
b4) 26... Ncd6 {[%eval 35,34] [%emt 0:00:00]} (26... h6 $15 {[%eval -66,28]}
27. Kg2 hxg5 28. hxg5 b4) 27. Rh1 {[%eval -12,31] [%emt 0:01:35]} (27. h5 $14 {
[%eval 35,34]}) 27... b4 {[%emt 0:00:00]} 28. Nb1 {[%emt 0:00:40]} Bb5 {
[%emt 0:00:40]} 29. Bxf5 $1 {[%emt 0:00:30]} Nxf5 {[%emt 0:01:24]} 30. h5 {
[%eval -108,28] [%emt 0:00:12]} (30. Nd2 $15 {[%eval -64,30]}) 30... Rc8 {
[%eval 8,34] [%emt 0:04:40]} (30... gxh5 $17 {[%eval -108,28]} 31. Nf6 h4) 31.
Kg1 {[%eval -54,26] [%emt 0:00:30]} (31. h6+ $11 {[%eval 8,34]} Kh8 32. Rc1)
31... Rcc7 $2 {[%eval 188,24] [%emt 0:00:30] [#]} (31... Rec7 $1 $15 {[%eval
-54,26] keeps the upper hand.}) 32. Qh2 $2 {[%eval 0,34] [%emt 0:00:30]} ({
Stronger than} 32. hxg6 fxg6 33. Rh2 (33. Qh2 Kh8 $11) 33... Qa5 $11) ({
White has to play} 32. Nf6 $1 $18 {[%eval 188,24]} Re8 33. hxg6 (33. Nxe8+ Bxe8
34. hxg6 fxg6 $16)) 32... Kh8 {[%eval 51,31] [%emt 0:00:30]} (32... Kf8 $11 {
[%eval 0,34]}) 33. Ne5 {[%eval 0,33] [%emt 0:00:30]} (33. Nd2 $1 $14 {[%eval
51,31]}) 33... Be8 {[%emt 0:00:30]} 34. Nd2 $2 {[%eval -174,28] [%emt 0:00:30]}
(34. Ng4 $11 {[%eval 0,33]}) 34... Rc2 $19 {[%emt 0:00:30]} 35. Ra1 {[%eval
-239,28] [%emt 0:00:30]} (35. hxg6 {[%eval -175,30] is a better defense.} fxg6
36. Qf2) 35... Qb7 $2 {[%eval -60,28] [%emt 0:00:30]} (35... Ra7 $19 {[%eval
-239,28]} 36. Rb1 Nxe3 37. hxg6 fxg6) 36. Nd3 {[%eval -203,26] [%emt 0:00:30] 
[#]} (36. Ng4 $1 $15 {[%eval -60,28]}) 36... Nd6 $2 {[%eval 0,37] [%emt 0:00:
30]} ({Don't play} 36... Nxe3 37. Qh3) (36... Qb5 $1 $19 {[%eval -203,26][%cal
Rb5d3]} 37. Nc5 (37. hxg6 $2 fxg6 38. Ne5 b3 $19) 37... Nxe3 38. hxg6 fxg6) 37.
Qf2 $2 {[%eval -222,28] [%emt 0:01:33]} (37. f5 $11 {[%eval 0,37] and White
stays safe.} Nxf5 38. hxg6 fxg6 39. Qe5+ Kg8 40. Nb3) 37... Nc4 {[%emt 0:00:58]
} 38. Qe1 $2 {[%eval -403,25] [%emt 0:00:26]} (38. Rd1 {[%eval -200,30]}) 38...
Rc7 $2 {[%eval 107,27] [%emt 0:00:31]} (38... Rxd2 $19 {[%eval -403,25]} 39.
Nc5 Qc8 40. hxg6 fxg6) 39. Nb3 {[%emt 0:00:30]} Nxb2 {[%emt 0:00:30]} 40. Ndc5
{[%eval 5,32] [%emt 0:00:37]} ({White should try} 40. Qxb4 $14 {[%eval 69,32]}
Qxb4 41. Nxb4) 40... Qc8 $11 {[%emt 0:00:29]} 41. Qxb4 {[%emt 0:00:30]
Threatens to win with Na6.} e5 {[%emt 0:00:30] ( -> ...Qg4+)} 42. Ne6 {[%emt 0:
00:30][%cal Rb4f8]} Bc6 {[%emt 0:00:30]} 43. Qd6 {[%emt 0:00:30]} fxe6 {
[%emt 0:00:30]} 44. Qxe5+ {[%emt 0:00:57]} Kg8 {[%emt 0:00:00] And now ...Nc4
would win.} 45. hxg6 $1 $40 {[%emt 0:00:03][%mdl 128] White mounts an attack.}
Be8 $2 {[%eval 4051,33] [%emt 0:00:18][%mdl 8192]} (45... Nc4 $11 {[%eval 13,
31]} 46. Qf6 Nxe3 47. gxh7+ Rxh7 48. Rxh7 Kxh7) 46. gxh7+ {[%emt 0:00:16]} Rxh7
{[%emt 0:00:17]} 47. Rxh7 {[%emt 0:00:02]} Kxh7 {[%emt 0:00:02]} 48. Ra7+ {
[%emt 0:00:11]} Kg6 {[%emt 0:01:20] [#]} 49. f5+ $1 {[%emt 0:01:42][%mdl 512]
White mates.} exf5 {[%emt 0:00:45]} 50. Qd6+ {[%emt 0:00:06]} Kxg5 {[%emt 0:00:
43]} 51. Rg7+ {[%emt 0:00:19] Accuracy: White = 33%, Black = 45%.} 1-0

[Event "89_| Campeonato Brasileiro 2023"]
[Site "Recife"]
[Date "2023.12.17"]
[Round "6.6"]
[White "Bouwman, Marcelo Wanderley"]
[Black "Santiago, Yago De Moura"]
[Result "0-1"]
[ECO "B12"]
[WhiteElo "2116"]
[BlackElo "2476"]
[PlyCount "76"]
[EventDate "2023.??.??"]
[EventCountry "BRA"]
[TimeControl "90+30"]
[WhiteClock "0:09:50"]
[BlackClock "0:16:16"]

{[%evp 9,76,33,37,30,44,46,42,37,33,8,2,16,8,3,0,-193,-107,-214,-200,-214,-215,
-192,-186,-207,-199,-186,-182,-160,71,-407,-421,-439,-434,-501,-501,-501,-501,
-501,-501,-501,-501,-501,-501,-476,-475,-476,-472,-536,-538,-539,-531,-539,
-511,-592,-569,-579,-578,-603,-595,-592,-589,-598,-591,-601,-585,-635,-631,
-607,-603]} 1. e4 {[%emt 0:00:00]} c6 {[%emt 0:00:00]} 2. d4 {[%emt 0:00:00]}
d5 {[%emt 0:00:00]} 3. e5 {[%emt 0:00:00]} c5 {[%emt 0:00:00]} 4. dxc5 {
[%emt 0:00:00]} e6 {[%emt 0:00:00]} 5. a3 {[%emt 0:00:00]} Bxc5 {[%emt 0:00:00]
} 6. Nf3 {[%emt 0:00:00] B12: Caro-Kann: Advance Variation.} Nd7 {[%emt 0:00:
00]} 7. c4 {[%emt 0:00:00]} Ne7 {[%emt 0:00:00]} 8. Nc3 {[%emt 0:00:00][%cal
Rc4d5] White is slightly better.} O-O {[%emt 0:00:00]} 9. cxd5 {[%emt 0:00:00]}
Nxd5 {[%emt 0:00:00]} 10. Nxd5 {[%emt 0:00:00]} exd5 {[%emt 0:00:00]} 11. b4 {
[%emt 0:00:00]} Be7 $146 {[%emt 0:00:00]} ({Predecessor:} 11... Bb6 12. Bg5 Qe8
13. Qxd5 Bc7 14. Bf4 Nf6 15. Qc4 Nh5 16. Rc1 Bb8 17. Bd3 Bg4 {1-0 (34) Shirov,
A (2647)-Plazuelo Pascual,J (2448) Linares 2020}) 12. Qxd5 $2 {[%eval -193,25]
[%emt 0:00:00]} (12. Be2 $11 {[%eval 0,35] and White is okay.}) 12... a5 {
[%eval -107,26] [%emt 0:00:00]} ({Better is} 12... Nxe5 $1 $19 {[%eval -193,25]
} 13. Qxd8 (13. Qxe5 $2 Bf6 $19) 13... Nxf3+ 14. gxf3 Rxd8) 13. Rb1 {[%eval
-214,26] [%emt 0:00:00]} (13. Be2 $17 {[%eval -107,26]}) 13... axb4 $19 {
[%emt 0:00:00]} 14. axb4 {[%emt 0:00:00] [#]} Nxe5 $1 {[%emt 0:00:00][%mdl 512]
} 15. Qxe5 {[%emt 0:00:00] [#] aiming for Be2.} Re8 $1 {[%emt 0:00:00]} 16. Be2
{[%emt 0:00:00] And now 0-0 would win.} Bxb4+ $1 {[%emt 0:00:00]} 17. Rxb4 {
[%emt 0:00:00]} Rxe5 {[%emt 0:00:00]} 18. Nxe5 {[%emt 0:00:00]} Qd6 $2 {
[%eval 71,30] [%emt 0:00:00]} (18... Qa5 $17 {[%eval -160,27] and life is
bright.} 19. Nd3 Bf5) 19. Re4 $2 {[%eval -407,26] [%emt 0:00:00][%mdl 8192]} (
19. Rb5 $16 {[%eval 71,30]}) 19... Bf5 {[%emt 0:00:00]} 20. Re3 {[%emt 0:00:00]
Strongly threatening 0-0.Black is clearly winning.} Qb4+ {[%emt 0:00:00]} 21.
Kd1 {[%emt 0:00:00]} ({Of course not} 21. Bd2 Ra1+ 22. Bd1 {[#]} Rxd1+ $1 {
[%mdl 512]} 23. Kxd1 Qb1+ 24. Ke2 Qxh1 $19) 21... Qa4+ {[%emt 0:00:00]} 22. Ke1
{[%emt 0:00:00]} Qc2 {[%emt 0:00:00]} 23. Nd3 {[%emt 0:00:00]} Bxd3 {[%emt 0:
00:00]} 24. Rxd3 {[%emt 0:00:00]} Qxc1+ {[%emt 0:00:00]} 25. Rd1 {[%emt 0:00:
00]} Qc3+ {[%emt 0:00:00]} 26. Kf1 {[%emt 0:00:00]} Ra1 {[%emt 0:00:00]} 27. g3
{[%emt 0:00:00]} Qc6 {[%emt 0:00:00][%cal Rc6h1]} 28. f3 {[%emt 0:00:00]} Rxd1+
{[%emt 0:00:00]} 29. Bxd1 {[%emt 0:00:00][%mdl 4096] Endgame KQ-KRB} Qd5 {
[%emt 0:01:14]} 30. Be2 {[%emt 0:00:00]} g6 {[%emt 0:00:16]} 31. Kf2 {[%emt 0:
00:00]} Qd4+ {[%emt 0:00:06]} 32. Kg2 {[%emt 0:00:00]} Qe3 {[%emt 0:00:13]} 33.
Re1 {[%emt 0:00:14] [#]} b5 $1 {[%emt 0:00:29][%cal Bb7b5,Bb5b4,Bb4b3][%mdl 32]
} 34. Kf1 {[%emt 0:00:52]} (34. Bxb5 Qxe1) 34... b4 {[%emt 0:00:06]} 35. Bd1 {
[%emt 0:02:00]} Qd2 {[%emt 0:00:07]} 36. h4 {[%emt 0:06:31]} h5 {[%emt 0:01:01]
} 37. Be2 {[%emt 0:00:36]} b3 {[%emt 0:00:25]} 38. Rd1 {[%emt 0:00:27]} Qe3 {
[%emt 0:00:17] Accuracy: White = 58%, Black = 82%.} 0-1

[Event "89_| Campeonato Brasileiro 2023"]
[Site "Recife"]
[Date "2023.12.16"]
[Round "6.7"]
[White "Ferreira Junior, Luiz Carlos A"]
[Black "Do Valle Cardoso, Lucas"]
[Result "0-1"]
[ECO "D24"]
[WhiteElo "2037"]
[BlackElo "2352"]
[PlyCount "44"]
[EventDate "2023.??.??"]
[EventCountry "BRA"]
[TimeControl "90+30"]
[WhiteClock "1:04:44"]
[BlackClock "1:06:29"]

{[%evp 14,44,-78,-149,-149,-136,-143,-147,-135,-226,-225,-379,-382,-379,-386,
-385,-379,-516,-507,-511,-511,-508,-503,-510,-501,-503,-497,-565,-569,-558,
-483,-573,-553]} 1. d4 {[%emt 0:00:00]} d5 {[%emt 0:00:00]} 2. Nf3 {[%emt 0:00:
00]} Nf6 {[%emt 0:00:00]} 3. c4 {[%emt 0:00:00]} dxc4 {[%emt 0:00:00]} 4. Nc3 {
[%emt 0:00:00]} a6 {[%emt 0:00:00]} 5. a4 {[%emt 0:00:00]} Nc6 {[%emt 0:00:00]
[%cal Bb8c6,Bc6a5,Ba5b3][%mdl 32]} 6. e3 {[%emt 0:00:00]} Na5 {[%emt 0:00:00]}
7. Ne5 {[%emt 0:00:00]} Be6 {[%emt 0:00:00]} 8. Be2 {[%eval -149,23] [%emt 0:
00:00]} (8. e4 $142 {[%eval -78,28]}) 8... g6 $17 {[%emt 0:00:00] D24: Queen's
Gambit Accepted: 3 Nf3 Nf6 4 Nc3.} 9. O-O {[%emt 0:00:00]} Bg7 {[%emt 0:00:00]}
10. e4 {[%emt 0:00:00]} Nb3 {[%emt 0:00:00] Black is clearly better.} 11. Ra3 {
[%eval -226,24] [%emt 0:00:00]} (11. d5 $17 {[%eval -135,29]} Bc8 12. Ra3)
11... Qxd4 $19 {[%emt 0:00:00] [#]} 12. Qxd4 $146 {[%eval -379,30] [%emt 0:00:
00]} (12. Bxc4 $1 {[%eval -225,26][%mdl 512]} Bxc4 13. Nxc4 Qxc4 14. Qxb3 Qxb3
15. Rxb3) ({Predecessor:} 12. Bxc4 Bxc4 13. Nxc4 Qxc4 14. Qxb3 Qxb3 15. Rxb3
O-O-O 16. f3 Nd7 17. Be3 Ne5 18. Bg5 {0-1 (40) Vertes,A (2209)-Fister,B (2331)
ICCF email 2012}) 12... Nxd4 {[%emt 0:00:00]} 13. Bxc4 {[%emt 0:00:00] [#]}
Nxe4 $1 {[%emt 0:00:00][%mdl 512]} 14. Bxe6 {[%emt 0:00:00]} (14. Nxe4 Bxe5)
14... Nxe6 {[%emt 0:00:00]} 15. Nxf7 {[%emt 0:00:00]} Nxc3 {[%emt 0:00:00]
Black is clearly winning.} ({Weaker is} 15... Kxf7 16. Nxe4 Rhd8 17. Re1 $17)
16. Nxh8 {[%emt 0:00:00]} Ne2+ {[%emt 0:00:00]} 17. Kh1 {[%emt 0:00:00]} Nxc1 {
[%emt 0:00:00]} 18. Nxg6 {[%emt 0:00:00]} hxg6 {[%emt 0:00:00]} 19. Re3 {
[%emt 0:00:00]} Nd8 {[%emt 0:00:00]} 20. Rg3 {[%emt 0:00:00]} Ne2 {[%emt 0:00:
00]} 21. Rxg6 {[%emt 0:00:00]} Kf7 {[%emt 0:00:00]} 22. Rg4 {[%emt 0:00:00]}
Nc6 {[%emt 0:00:00] Accuracy: White = 46%, Black = 93%.} 0-1